fUSD/lending_fUSD_20250226
["ID","MTS","AMOUNT","RATE_DAILY","PERIOD"]
[354572715,1740579052716,-708.53,0.00038903,14]
[354572716,1740579052726,-687.98,0.00038903,14]
[354572717,1740579052735,-500.0,0.00038903,14]
[354572718,1740579052745,-500.0,0.00038903,14]
[354572719,1740579052755,-1224.09,0.00038903,14]
[354572720,1740579052764,-500.0,0.00038903,14]
[354572721,1740579052774,-642.92,0.00038903,14]
[354572722,1740579052783,-500.0,0.00038903,14]
[354572723,1740579052793,-500.0,0.00038903,14]
[354572724,1740579052803,-500.0,0.00038903,14]
[354572725,1740579052814,-500.0,0.00038903,14]
[354572726,1740579052824,-527.12458805,0.00038903,14]
[354572727,1740579052833,-1378.47,0.00038903,14]
[354572728,1740579052843,-525.37,0.00038903,14]
[354572729,1740579052853,-667.25,0.00038903,14]
[354572730,1740579052863,-1101.68,0.00038903,14]
[354572731,1740579052872,-1827.21,0.00038903,14]
[354572732,1740579052882,-500.0,0.00038903,14]
[354572733,1740579052891,-500.0,0.00038903,14]
[354572734,1740579052900,-500.0,0.00038903,14]
[354572735,1740579052910,-500.0,0.00038903,14]
[354572736,1740579052919,-500.0,0.00038903,14]
[354572737,1740579052928,-1293.28,0.00038903,14]
[354572738,1740579052938,-501.66,0.00038903,14]
[354572739,1740579052948,-595.35,0.00038903,14]
[354572740,1740579052957,-1402.84,0.00038903,14]
[354572741,1740579052966,-500.0,0.00038903,14]
[354572742,1740579052976,-1106.24,0.00038903,14]
[354572743,1740579052985,-735.16,0.00038903,14]
[354572744,1740579052994,-624.88954738,0.00038903,14]
[354572745,1740579053004,-1672.09,0.00038903,14]
[354572746,1740579053013,-500.0,0.00038903,14]
[354572747,1740579053022,-500.0,0.00038903,14]
[354572748,1740579053031,-858.59,0.00038903,14]
[354572749,1740579053042,-1014.94,0.00038903,14]
[354572750,1740579053051,-1882.24153512,0.0003891,2]
[354572751,1740579053063,-1741.9,0.00039047,14]
[354572752,1740579053073,-2546.12,0.00039047,14]
[354572753,1740579053082,-937.0,0.00039047,7]
[354572754,1740579053092,-1665.48,0.00039047,14]
[354572755,1740579053101,-1924.26,0.00039047,14]
[354572756,1740579053111,-1706.48,0.00039047,14]
[354572757,1740579053120,-1367.39,0.00039047,14]
[354572758,1740579053130,-1305.398709,0.00039047,14]
[354572759,1740579053140,-2092.61,0.00039047,2]
[354572760,1740579053150,-1628.36,0.00039047,14]
[354572761,1740579053160,-1427.72,0.00039047,14]
[354572762,1740579053173,-2164.35,0.00039047,14]
[354572763,1740579053182,-1702.04,0.00039047,14]
[354572764,1740579053194,-2419.07,0.00039047,14]
[354572765,1740579053204,-1249.89,0.00039047,14]
[354572766,1740579053215,-2364.22,0.00039047,14]
[354572767,1740579053225,-1644.73,0.00039047,14]
[354572768,1740579053236,-2453.57,0.00039047,14]
[354572769,1740579053246,-2845.99,0.00039047,14]
[354572770,1740579053256,-500.0,0.00039047,14]
[354572771,1740579053266,-10194.41,0.00039047,14]
[354572772,1740579053275,-5669.11,0.00039047,14]
[354572773,1740579053285,-2373.2,0.00039047,14]
[354572774,1740579053294,-2458.21,0.00039047,14]
[354572775,1740579053304,-1214.82,0.00039047,14]
[354572776,1740579053316,-2584.33,0.00039047,14]
[354572777,1740579053326,-2136.62,0.00039047,14]
[354572778,1740579053335,-2800.15,0.00039047,14]
[354572779,1740579053346,-1891.52,0.00039047,14]
[354572780,1740579053355,-1319.55,0.00039047,14]
[354572781,1740579053366,-500.0,0.00039047,14]
[354572782,1740579053375,-4907.13,0.00039047,14]
[354572783,1740579053385,-1669.57,0.00039047,14]
[354572784,1740579053395,-1022.16,0.00039047,14]
[354572785,1740579053404,-1461.24,0.00039047,14]
[354572786,1740579053414,-2876.07,0.00039047,14]
[354572787,1740579053424,-500.0,0.00039047,14]
[354572788,1740579053434,-4053.62,0.00039047,14]
[354572789,1740579053444,-500.0,0.00039047,14]
[354572790,1740579053454,-2756.34,0.00039047,14]
[354572791,1740579053463,-8461.68,0.00039047,14]
[354572792,1740579053473,-3747.11,0.00039047,14]
[354572793,1740579053483,-1513.27,0.00039047,14]
[354572794,1740579053492,-546.54,0.00039047,14]
[354572795,1740579053502,-500.0,0.00039047,14]
[354572796,1740579053511,-1953.59,0.00039047,14]
[354572797,1740579053521,-1081.18,0.00039047,14]
[354572798,1740579053531,-610.31,0.00039047,14]
[354572799,1740579053541,-3730.81,0.00039047,14]
[354572800,1740579053551,-1118.72,0.00039047,14]
[354572801,1740579053564,-1078.68,0.00039047,14]
[354572802,1740579053574,-1235.06,0.00039047,14]
[354572803,1740579053584,-1173.72,0.00039047,14]
[354572804,1740579053594,-3356.85,0.00039047,14]
[354572805,1740579053604,-3909.95,0.00039047,14]
[354572806,1740579053616,-2504.14,0.00039047,14]
[354572807,1740579053626,-1471.03,0.00039047,14]
[354572808,1740579053636,-3435.84,0.00039047,14]
[354572809,1740579053646,-878.01,0.00039047,14]
[354572810,1740579053655,-697.39264935,0.00039069,2]
[354572811,1740579053665,-1882.24153512,0.00039074,2]
[354572812,1740579053676,-500.0,0.00039173,5]
[354572813,1740579053686,-500.0,0.00039173,5]
[354572814,1740579053696,-500.0,0.00039173,5]
[354572815,1740579053706,-500.0,0.00039173,14]
[354572816,1740579053716,-500.0,0.00039173,14]
[354572817,1740579053726,-608.73,0.00039173,14]
[354572818,1740579053736,-500.0,0.00039173,14]
[354572819,1740579053746,-500.0,0.00039173,14]
[354572820,1740579053757,-500.0,0.00039173,14]
[354572821,1740579053767,-500.0,0.00039173,14]
[354572822,1740579053777,-500.0,0.00039173,14]
[354572823,1740579053787,-500.0,0.00039173,14]
[354572824,1740579053797,-920.77,0.00039173,14]
[354572825,1740579053809,-1222.03,0.00039173,14]
[354572826,1740579053819,-500.0,0.00039173,14]
[354572827,1740579053829,-765.25,0.00039173,14]
[354572828,1740579053839,-500.0,0.00039173,14]
[354572829,1740579053849,-500.0,0.00039173,14]
[354572830,1740579053858,-500.0,0.00039173,14]
[354572831,1740579053868,-527.94,0.00039173,14]
[354572832,1740579053878,-796.19,0.00039173,14]
[354572833,1740579053887,-528.52,0.00039173,14]
[354572834,1740579053897,-641.57,0.00039173,14]
[354572835,1740579053907,-830.07,0.00039173,14]
[354572836,1740579053917,-702.66,0.00039173,14]
[354572837,1740579053927,-513.17,0.00039173,14]
[354572838,1740579053936,-612.24,0.00039173,14]
[354572839,1740579053946,-500.0,0.00039173,14]
[354572840,1740579053957,-500.0,0.00039173,14]
[354572841,1740579053967,-536.81,0.00039173,14]
[354572842,1740579053977,-988.12,0.00039173,14]
[354572843,1740579053987,-500.0,0.00039173,14]
[354572844,1740579053997,-500.0,0.00039173,14]
[354572845,1740579054007,-500.0,0.00039173,14]
[354572846,1740579054017,-500.0,0.00039173,14]
[354572847,1740579054026,-500.0,0.00039173,14]
[354572848,1740579054036,-824.39,0.00039173,14]
[354572849,1740579054045,-598.8,0.00039173,14]
[354572850,1740579054054,-578.13,0.00039173,14]
[354572851,1740579054066,-500.0,0.00039173,14]
[354572852,1740579054075,-500.0,0.00039173,14]
[354572853,1740579054085,-788.51,0.00039173,14]
[354572854,1740579054098,-632.18,0.00039173,14]
[354572855,1740579054108,-516.45,0.00039173,14]
[354572856,1740579054118,-500.0,0.00039173,14]
[354572857,1740579054128,-917.08,0.00039173,14]
[354572858,1740579054138,-500.0,0.00039173,14]
[354572859,1740579054152,-500.0,0.00039173,14]
[354572860,1740579054162,-500.0,0.00039173,14]
[354572861,1740579054172,-795.74,0.00039173,14]
[354572862,1740579054183,-500.0,0.00039173,14]
[354572863,1740579054193,-577.91957013,0.00039173,14]
[354572864,1740579054203,-766.94,0.00039174,14]
[354572865,1740579054215,-526.99,0.00039174,14]
[354572866,1740579054225,-500.0,0.00039174,14]
[354572867,1740579054235,-500.0,0.00039174,14]
[354572868,1740579054245,-877.52,0.00039174,14]
[354572869,1740579054256,-500.0,0.00039174,14]
[354572870,1740579054266,-679.36,0.00039174,14]
[354572871,1740579054276,-675.96,0.00039174,14]
[354572872,1740579054286,-500.0,0.00039174,14]
[354572873,1740579054296,-1354.66,0.00039174,14]
[354572874,1740579054306,-500.0,0.00039174,14]
[354572875,1740579054317,-500.0,0.00039174,14]
[354572876,1740579054326,-800.36,0.00039174,14]
[354572877,1740579054336,-500.0,0.00039174,14]
[354572878,1740579054346,-541.12,0.00039174,14]
[354572879,1740579054356,-1236.59,0.00039174,14]
[354572880,1740579054366,-752.34,0.00039174,14]
[354572881,1740579054376,-749.56,0.00039174,14]
[354572882,1740579054386,-252.24432202,0.00039174,14]
[354572883,1740579054397,-500.0,0.00039174,14]
[354572884,1740579054407,-743.4,0.00039174,14]
[354572885,1740579054417,-829.28,0.00039174,14]
[354572886,1740579054427,-535.43,0.00039174,14]
[354572887,1740579054437,-500.0,0.00039174,14]
[354572888,1740579054447,-1003.13,0.00039174,14]
[354572889,1740579054457,-500.0,0.00039174,14]
[354572890,1740579054467,-714.62,0.00039174,14]
[354572891,1740579054477,-500.0,0.00039174,14]
[354572892,1740579054486,-500.0,0.00039174,14]
[354572893,1740579054496,-500.0,0.00039174,14]
[354572894,1740579054506,-500.0,0.00039174,14]
[354572895,1740579054516,-500.0,0.00039174,14]
[354572896,1740579054526,-719.56,0.00039174,14]
[354572897,1740579054535,-878.0,0.00039174,14]
[354572898,1740579054546,-500.0,0.00039174,14]
[354572899,1740579054556,-997.99,0.00039174,14]
[354572900,1740579054567,-500.0,0.00039174,14]
[354572901,1740579054576,-596.86,0.00039174,14]
[354572902,1740579054586,-500.0,0.00039174,14]
[354572903,1740579054596,-585.85,0.00039174,14]
[354572904,1740579054606,-500.0,0.00039174,14]
[354572905,1740579054616,-500.0,0.00039174,14]
[354572906,1740579054812,-500.0,0.00039174,14]
[354572907,1740579054835,-1171.13,0.00039174,14]
[354572908,1740579054845,-500.0,0.00039174,14]
[354572909,1740579054854,-1838.13,0.00039174,14]
[354572910,1740579054864,-741.53,0.00039174,14]
[354572911,1740579054873,-500.0,0.00039174,14]
[354572912,1740579054883,-500.0,0.00039174,14]
[354572913,1740579054892,-564.06,0.00039174,14]
[354572914,1740579054903,-509.73,0.00039174,14]
[354572915,1740579054913,-937.22,0.00039174,14]
[354572916,1740579054922,-909.62,0.00039174,14]
[354572917,1740579054932,-830.44,0.00039174,14]
[354572918,1740579054942,-500.0,0.00039174,14]
[354572919,1740579054951,-621.68,0.00039174,14]
[354572920,1740579054961,-500.0,0.00039174,14]
[354572921,1740579054970,-1599.87,0.00039174,14]
[354572922,1740579054981,-734.05,0.00039174,14]
[354572923,1740579054991,-665.23,0.00039174,14]
[354572924,1740579055001,-500.0,0.00039174,14]
[354572925,1740579055010,-578.81,0.00039174,14]
[354572926,1740579055021,-500.0,0.00039174,14]
[354572927,1740579055031,-500.0,0.00039174,14]
[354572928,1740579055040,-500.0,0.00039174,14]
[354572929,1740579055051,-529.08,0.00039174,14]
[354572930,1740579055063,-500.0,0.00039174,14]
[354572931,1740579055072,-810.96,0.00039174,14]
[354572932,1740579055082,-500.0,0.00039174,14]
[354572933,1740579055092,-500.0,0.00039174,14]
[354572934,1740579055101,-606.51,0.00039174,14]
[354572935,1740579055111,-663.25,0.00039174,14]
[354572936,1740579055121,-711.69,0.00039174,14]
[354572937,1740579055130,-714.88,0.00039174,14]
[354572938,1740579055140,-836.72,0.00039174,14]
[354572939,1740579055150,-500.0,0.00039174,14]
[354572940,1740579055159,-500.0,0.00039174,14]
[354572941,1740579055170,-500.0,0.00039174,14]
[354572942,1740579055180,-1203.4,0.00039174,14]
[354572943,1740579055189,-1188.82,0.00039174,14]
[354572944,1740579055199,-785.44,0.00039174,14]
[354572945,1740579055209,-500.0,0.00039174,14]
[354572946,1740579055219,-727.14,0.00039174,14]
[354572947,1740579055228,-989.7,0.00039174,14]
[354572948,1740579055240,-500.0,0.00039174,14]
[354572949,1740579055250,-1157.19,0.00039174,14]
[354572950,1740579055260,-725.63,0.00039174,14]
[354572951,1740579055269,-500.0,0.00039174,14]
[354572952,1740579055279,-1380.46,0.00039174,14]
[354572953,1740579055289,-1383.0,0.00039174,14]
[354572954,1740579055299,-828.64,0.00039174,14]
[354572955,1740579055312,-700.6,0.00039174,14]
[354572956,1740579055321,-909.32,0.00039174,14]
[354572957,1740579055331,-500.0,0.00039174,14]
[354572958,1740579055341,-2364.77,0.00039174,14]
[354572959,1740579055351,-908.01,0.00039174,14]
[354572960,1740579055361,-588.95,0.00039174,14]
[354572961,1740579055371,-637.07,0.00039174,14]
[354572962,1740579055381,-500.0,0.00039174,14]
[354572963,1740579055391,-2266.37,0.00039174,14]
[354572964,1740579055401,-500.0,0.00039174,14]
[354572965,1740579055411,-1635.54,0.00039174,14]
[354572966,1740579055420,-500.0,0.00039174,14]
[354572967,1740579055431,-500.0,0.00039174,14]
[354572968,1740579055441,-1365.36,0.00039174,14]
[354572969,1740579055451,-500.0,0.00039174,14]
[354572970,1740579055461,-1335.32,0.00039174,14]
[354572971,1740579055471,-517.55,0.00039174,14]
[354572972,1740579055480,-1311.4,0.00039174,14]
[354572973,1740579055490,-500.0,0.00039174,14]
[354572974,1740579055500,-500.0,0.00039174,14]
[354572975,1740579055509,-1772.27,0.00039174,14]
[354572976,1740579055519,-712.34,0.00039174,14]
[354572977,1740579055529,-853.47,0.00039174,14]
[354572978,1740579055538,-553.6,0.00039174,14]
[354572979,1740579055550,-2827.92,0.00039174,14]
[354572980,1740579055561,-516.94,0.00039174,14]
[354572981,1740579055571,-664.49,0.00039174,14]
[354572982,1740579055580,-2665.37,0.00039174,14]
[354572983,1740579055589,-979.89,0.00039174,14]
[354572984,1740579055599,-500.0,0.00039174,14]
[354572985,1740579055609,-2926.58,0.00039174,14]
[354572986,1740579055619,-584.65,0.00039174,14]
[354572987,1740579055628,-2222.36,0.00039174,14]
[354572988,1740579055638,-6058.44,0.00039174,14]
[354572989,1740579055647,-500.0,0.00039174,14]
[354572990,1740579055657,-623.07,0.00039174,14]
[354572991,1740579055667,-712.37,0.00039174,14]
[354572992,1740579055677,-1063.89,0.00039174,14]
[354572993,1740579055686,-632.18,0.00039174,14]
[354572994,1740579055696,-1089.38,0.00039174,14]
[354572995,1740579055705,-1240.0,0.00039174,14]
[354572996,1740579055715,-1516.22,0.00039174,14]
[354572997,1740579055724,-500.0,0.00039174,14]
[354572998,1740579055734,-588.12,0.00039174,14]
[354572999,1740579055743,-995.99,0.00039174,14]
[354573000,1740579055753,-2222.97,0.00039174,14]
[354573001,1740579055763,-539.43,0.00039174,14]
[354573002,1740579055773,-500.0,0.00039174,14]
[354573003,1740579055785,-1250.99,0.00039174,14]
[354573004,1740579055794,-2764.98,0.00039174,14]
[354573005,1740579055803,-6267.3,0.00039174,14]
[354573006,1740579055815,-500.0,0.00039174,14]
[354573007,1740579055824,-3072.05,0.00039174,14]
[354573008,1740579055834,-1505.44,0.00039174,14]
[354573009,1740579055843,-510.48,0.00039174,14]
[354573010,1740579055853,-500.0,0.00039174,14]
[354573011,1740579055862,-1623.58,0.00039174,14]
[354573012,1740579055871,-4044.93,0.00039174,14]
[354573013,1740579055881,-937.49,0.00039174,14]
[354573014,1740579055890,-7622.02,0.00039174,14]
[354573015,1740579055900,-2756.53,0.00039174,14]
[354573016,1740579055910,-729.46,0.00039174,7]
[354573017,1740579055919,-559.12,0.00039174,14]
[354573018,1740579055930,-2829.82,0.00039174,14]
[354573019,1740579055940,-500.0,0.00039174,14]
[354573020,1740579055950,-575.61,0.00039174,14]
[354573021,1740579055960,-500.0,0.00039174,14]
[354573022,1740579055969,-1282.22,0.00039174,14]
[354573023,1740579055978,-555.19,0.00039174,14]
[354573024,1740579055988,-500.0,0.00039174,14]
[354573025,1740579055998,-1865.33,0.00039174,14]
[354573026,1740579056008,-2910.21,0.00039174,14]
[354573027,1740579056018,-8423.92,0.00039174,14]
[354573028,1740579056028,-1189.83,0.00039174,14]
[354573029,1740579056037,-500.0,0.00039174,14]
[354573030,1740579056046,-500.0,0.00039174,14]
[354573031,1740579056056,-500.0,0.00039174,14]
[354573032,1740579056069,-150.0,0.00039174,2]
[354573033,1740579056078,-3922.0,0.00039174,2]
[354573034,1740579056088,-1010.0,0.00039174,2]
[354573035,1740579056097,-500.0,0.00039175,14]
[354573036,1740579056107,-500.0,0.00039175,14]
[354573037,1740579056117,-500.0,0.00039175,14]
[354573038,1740579056127,-677.02,0.00039175,14]
[354573039,1740579056136,-500.0,0.00039175,14]
[354573040,1740579056149,-802.45,0.00039175,14]
[354573041,1740579056159,-565.95,0.00039175,14]
[354573042,1740579056169,-512.53,0.00039175,14]
[354573043,1740579056178,-500.0,0.00039175,14]
[354573044,1740579056190,-500.0,0.00039175,14]
[354573045,1740579056199,-1168.82,0.00039175,14]
[354573046,1740579056209,-978.91,0.00039175,14]
[354573047,1740579056221,-500.0,0.00039175,14]
[354573048,1740579056230,-500.0,0.00039175,14]
[354573049,1740579056240,-500.0,0.00039175,14]
[354573050,1740579056250,-825.29,0.00039175,14]
[354573051,1740579056259,-500.0,0.00039175,14]
[354573052,1740579056269,-583.74,0.00039175,14]
[354573053,1740579056279,-500.0,0.00039175,14]
[354573054,1740579056288,-612.46,0.00039175,14]
[354573055,1740579056297,-572.91,0.00039175,14]
[354573056,1740579056308,-500.0,0.00039175,14]
[354573057,1740579056320,-755.97,0.00039175,14]
[354573058,1740579056329,-500.0,0.00039175,14]
[354573059,1740579056338,-500.0,0.00039175,14]
[354573060,1740579056348,-538.04,0.00039175,14]
[354573061,1740579056358,-500.0,0.00039175,14]
[354573062,1740579056369,-753.71,0.00039175,14]
[354573063,1740579056378,-651.66,0.00039175,14]
[354573064,1740579056388,-1026.57,0.00039175,14]
[354573065,1740579056397,-1020.87,0.00039175,14]
[354573066,1740579056407,-500.0,0.00039175,14]
[354573067,1740579056416,-500.0,0.00039175,14]
[354573068,1740579056426,-1007.43,0.00039175,14]
[354573069,1740579056436,-500.0,0.00039175,14]
[354573070,1740579056446,-1095.01,0.00039175,14]
[354573071,1740579056457,-910.66,0.00039175,14]
[354573072,1740579056467,-500.0,0.00039175,14]
[354573073,1740579056476,-500.0,0.00039175,14]
[354573074,1740579056486,-564.6,0.00039175,14]
[354573075,1740579056496,-768.03,0.00039175,14]
[354573076,1740579056505,-992.83,0.00039175,14]
[354573077,1740579056514,-993.3,0.00039175,14]
[354573078,1740579056524,-500.0,0.00039175,14]
[354573079,1740579056533,-500.0,0.00039175,14]
[354573080,1740579056542,-690.81,0.00039175,14]
[354573081,1740579056552,-500.0,0.00039175,14]
[354573082,1740579056561,-794.98,0.00039175,14]
[354573083,1740579056570,-625.49,0.00039175,14]
[354573084,1740579056579,-500.0,0.00039175,14]
[354573085,1740579056589,-500.89,0.00039175,14]
[354573086,1740579056598,-500.0,0.00039175,14]
[354573087,1740579056608,-500.0,0.00039175,14]
[354573088,1740579056617,-591.01,0.00039175,14]
[354573089,1740579056627,-500.0,0.00039175,14]
[354573090,1740579056636,-500.0,0.00039175,14]
[354573091,1740579056646,-1674.03,0.00039175,14]
[354573092,1740579056655,-500.0,0.00039175,14]
[354573093,1740579056665,-500.0,0.00039175,14]
[354573094,1740579056674,-712.51,0.00039175,14]
[354573095,1740579056683,-500.0,0.00039175,14]
[354573096,1740579056693,-990.23,0.00039175,14]
[354573097,1740579056702,-1962.02,0.00039175,14]
[354573098,1740579056712,-500.0,0.00039175,14]
[354573099,1740579056722,-500.0,0.00039175,14]
[354573100,1740579056731,-500.0,0.00039175,14]
[354573101,1740579056741,-628.58,0.00039175,14]
[354573102,1740579056751,-693.39,0.00039175,14]
[354573103,1740579056760,-807.24,0.00039175,14]
[354573104,1740579056770,-500.0,0.00039175,14]
[354573105,1740579056780,-500.0,0.00039175,14]
[354573106,1740579056789,-500.0,0.00039175,14]
[354573107,1740579056798,-500.0,0.00039175,14]
[354573108,1740579056807,-500.0,0.00039175,14]
[354573109,1740579056818,-500.0,0.00039175,14]
[354573110,1740579056827,-766.03,0.00039175,14]
[354573111,1740579056837,-500.0,0.00039175,14]
[354573112,1740579056847,-500.0,0.00039175,14]
[354573113,1740579056856,-500.0,0.00039175,14]
[354573114,1740579056865,-500.0,0.00039175,14]
[354573115,1740579056874,-2132.27,0.00039175,14]
[354573116,1740579056884,-500.0,0.00039175,14]
[354573117,1740579056893,-569.13,0.00039175,14]
[354573118,1740579056903,-765.88,0.00039175,14]
[354573119,1740579056912,-500.0,0.00039175,14]
[354573120,1740579056922,-500.0,0.00039175,14]
[354573121,1740579056931,-642.3,0.00039175,14]
[354573122,1740579056940,-803.74,0.00039175,14]
[354573123,1740579056950,-923.56,0.00039175,14]
[354573124,1740579056958,-1195.67,0.00039175,14]
[354573125,1740579056967,-959.11,0.00039175,14]
[354573126,1740579056976,-500.0,0.00039175,14]
[354573127,1740579056985,-1531.18,0.00039175,14]
[354573128,1740579056994,-971.94,0.00039175,14]
[354573129,1740579057003,-1072.53,0.00039175,14]
[354573130,1740579057013,-2069.97,0.00039175,14]
[354573131,1740579057021,-500.0,0.00039175,14]
[354573132,1740579057031,-516.84,0.00039175,14]
[354573133,1740579057040,-661.53,0.00039175,14]
[354573134,1740579057049,-1839.88,0.00039175,14]
[354573135,1740579057059,-1359.96,0.00039175,14]
[354573136,1740579057071,-309.69914287,0.00039175,14]
[354573137,1740579057081,-1985.62,0.00039175,14]
[354573138,1740579057090,-649.95,0.00039175,14]
[354573139,1740579057100,-1364.43,0.00039175,14]
[354573140,1740579057110,-1535.28,0.00039175,14]
[354573141,1740579057119,-1331.69,0.00039175,14]
[354573142,1740579057128,-938.39,0.00039175,14]
[354573143,1740579057138,-559.38,0.00039175,14]
[354573144,1740579057149,-500.0,0.00039175,14]
[354573145,1740579057159,-1624.0,0.00039175,14]
[354573146,1740579057171,-1284.75,0.00039175,14]
[354573147,1740579057181,-1147.1,0.00039175,14]
[354573148,1740579057191,-500.0,0.00039175,14]
[354573149,1740579057200,-500.0,0.00039175,14]
[354573150,1740579057211,-500.0,0.00039175,14]
[354573151,1740579057220,-3448.1,0.00039175,14]
[354573152,1740579057232,-1343.45,0.00039175,14]
[354573153,1740579057243,-995.8,0.00039175,14]
[354573154,1740579057253,-1489.87,0.00039175,14]
[354573155,1740579057263,-500.0,0.00039175,14]
[354573156,1740579057273,-932.67,0.00039175,14]
[354573157,1740579057284,-500.0,0.00039175,14]
[354573158,1740579057294,-729.49,0.00039175,14]
[354573159,1740579057304,-1092.54,0.00039175,14]
[354573160,1740579057315,-1327.39,0.00039175,14]
[354573161,1740579057325,-1101.87,0.00039175,14]
[354573162,1740579057394,-699.61,0.00039175,14]
[354573163,1740579057404,-1570.33,0.00039175,14]
[354573164,1740579057414,-969.11,0.00039175,14]
[354573165,1740579057424,-500.0,0.00039175,14]
[354573166,1740579057434,-843.19,0.00039175,14]
[354573167,1740579057444,-500.0,0.00039175,14]
[354573168,1740579057456,-1269.57,0.00039175,14]
[354573169,1740579057466,-500.0,0.00039175,14]
[354573170,1740579057476,-156.04622163,0.00039175,14]
[354573171,1740579057486,-500.0,0.00039175,14]
[354573172,1740579057496,-500.0,0.00039175,14]
[354573173,1740579057506,-988.96,0.00039175,14]
[354573174,1740579057516,-1044.75,0.00039175,14]
[354573175,1740579057526,-518.04,0.00039175,14]
[354573176,1740579057535,-583.83,0.00039175,14]
[354573177,1740579057546,-500.0,0.00039175,14]
[354573178,1740579057556,-963.56,0.00039175,14]
[354573179,1740579057568,-300.0,0.00039175,14]
[354573180,1740579057577,-1823.45,0.00039175,14]
[354573181,1740579057587,-985.02,0.00039175,14]
[354573182,1740579057597,-1313.1,0.00039175,14]
[354573183,1740579057606,-1094.31,0.00039175,14]
[354573184,1740579057616,-500.0,0.00039175,14]
[354573185,1740579057626,-987.41,0.00039175,14]
[354573186,1740579057636,-1261.86,0.00039175,14]
[354573187,1740579057645,-500.0,0.00039175,14]
[354573188,1740579057655,-2623.37,0.00039175,14]
[354573189,1740579057666,-161.81149586,0.00039175,14]
[354573190,1740579057675,-631.48,0.00039175,14]
[354573191,1740579057686,-500.0,0.00039175,14]
[354573192,1740579057696,-500.0,0.00039175,14]
[354573193,1740579057705,-1194.79,0.00039175,14]
[354573194,1740579057717,-500.0,0.00039175,14]
[354573195,1740579057727,-1009.46,0.00039175,14]
[354573196,1740579057736,-681.97,0.00039175,14]
[354573197,1740579057746,-500.0,0.00039175,14]
[354573198,1740579057756,-1820.9,0.00039175,14]
[354573199,1740579057766,-1826.89,0.00039175,14]
[354573200,1740579057775,-630.45,0.00039175,14]
[354573201,1740579057786,-500.0,0.00039175,14]
[354573202,1740579057795,-695.83,0.00039175,14]
[354573203,1740579057805,-883.53,0.00039175,14]
[354573204,1740579057816,-500.0,0.00039175,14]
[354573205,1740579057825,-780.6,0.00039175,14]
[354573206,1740579057835,-1217.03,0.00039175,14]
[354573207,1740579057844,-500.0,0.00039175,14]
[354573208,1740579057854,-500.0,0.00039175,14]
[354573209,1740579057864,-1540.48,0.00039175,14]
[354573210,1740579057874,-500.0,0.00039175,14]
[354573211,1740579057884,-500.0,0.00039175,14]
[354573212,1740579057894,-1394.53,0.00039175,14]
[354573213,1740579057904,-500.0,0.00039175,14]
[354573214,1740579057913,-1632.46,0.00039175,14]